bitfinex/quotes_SOLUSD_20251206
["timestamp","ask_amount","ask_price","bid_price","bid_amount"]
[1764985785053,4.04591806,133.64,133.62,70.8638524]
[1764985785249,4.69591806,133.64,133.62,70.8638524]
[1764985785451,4.04591806,133.64,133.62,70.8638524]
[1764985785650,4.04591806,133.64,133.62,75.56877345]
[1764985786656,0.2,133.64,133.63,5.38492105]
[1764985791644,0.2,133.64,133.63,12.86827059]
[1764985793935,0.2,133.64,133.63,21.08827059]
[1764985795159,0.2,133.64,133.63,83.78827059]
[1764985795357,0.2,133.64,133.63,96.17521556]
[1764985796345,0.2,133.64,133.63,83.78827059]
[1764985797065,0.2,133.64,133.63,86.98396428]
[1764985797368,0.2,133.64,133.63,83.78827059]
[1764985798648,0.2,133.64,133.63,86.98396428]
[1764985800467,0.2,133.65,133.64,62.5]
[1764985800765,0.2,133.65,133.64,67.89492105]
[1764985801558,0.2,133.65,133.64,70.89016609]
[1764985802670,0.2,133.65,133.64,78.37295567]
[1764985806371,0.2,133.67,133.66,29.82372997]
[1764985806555,0.1,133.69,133.66,38.04372997]
[1764985806750,0.1,133.69,133.68,4.70492105]
[1764985806948,0.1,133.69,133.68,12.92492105]
[1764985807154,0.1,133.69,133.68,13.61492105]
[1764985807553,0.1,133.69,133.68,16.60949338]
[1764985808465,0.1,133.69,133.68,24.09004394]
[1764985809573,0.1,133.7,133.69,8.80994492]
[1764985809759,0.1,133.7,133.69,76.73486597]
[1764985810161,0.1,133.7,133.69,79.72876589]
[1764985810368,0.1,133.7,133.69,85.51015776]
[1764985812273,0.1,133.72,133.71,16.308864]
[1764985812477,0.1,133.72,133.71,28.2551859]
[1764985812856,0.1,133.72,133.71,31.24908582]
[1764985813578,0.1,133.72,133.71,38.727958]
[1764985817081,0.75,133.72,133.71,6.00022182]
[1764985817277,0.75,133.72,133.71,3.0063219]
[1764985817687,0.75,133.72,133.71,65.4063219]
[1764985817987,0.1,133.72,133.71,73.60519408]
[1764985827570,0.1,133.72,133.71,76.599094]
[1764985829596,0.1,133.72,133.71,84.819094]
[1764985829788,0.1,133.72,133.71,81.82519408]
[1764985830797,0.2,133.73,133.71,81.82519408]
[1764985831092,0.2,133.73,133.72,3.7263219]
[1764985831979,0.2,133.73,133.72,12.53626682]
[1764985832499,0.2,133.73,133.72,15.52949464]
[1764985833201,0.2,133.73,133.72,11.19154071]
[1764985833376,0.2,133.73,133.72,11.20463479]
[1764985835605,0.2,133.73,133.72,73.60463479]
[1764985839330,1e-08,133.74,133.73,74.01626682]
[1764985839619,1e-08,133.74,133.73,90.4551859]
[1764985839920,1e-08,133.74,133.73,89.7351859]
[1764985841021,0.65000001,133.74,133.73,11.2263219]
[1764985841320,1e-08,133.74,133.73,18.70407558]
[1764985844543,1e-08,133.74,133.73,15.69775368]
[1764985845142,1e-08,133.74,133.73,18.70407558]
[1764985847738,1e-08,133.74,133.73,15.69775368]
[1764985847921,0.65000001,133.74,133.73,8.22]
[1764985848435,0.65000001,133.74,133.73,11.2263219]
[1764985850422,1e-08,133.74,133.73,73.4263219]
[1764985853636,0.65000001,133.74,133.73,70.42]
[1764985853959,0.65000001,133.74,133.73,73.4263219]
[1764985854136,1e-08,133.74,133.73,73.4263219]
[1764985855061,0.65000001,133.74,133.73,8.22]
[1764985857450,0.65000001,133.74,133.72,72.68443681]
[1764985859273,1e-08,133.74,133.72,73.35443681]
[1764985861664,1e-08,133.74,133.73,3.0063219]
[1764985862480,0.65000001,133.74,133.71,3.0063219]
[1764985862767,0.65000001,133.74,133.7,49.1390752]
[1764985862768,3.65632191,133.74,133.7,49.1390752]
[1764985863369,0.65,133.73,133.7,49.1390752]
[1764985866373,0.65,133.73,133.7,49.8090752]
[1764985868181,0.65,133.73,133.7,112.0090752]
[1764985868877,0.65,133.73,133.7,111.3390752]
[1764985869059,0.65,133.73,133.7,112.0590752]
[1764985870409,0.65,133.73,133.7,113.75217617]
[1764985871101,0.65,133.73,133.71,4.69942287]
[1764985873188,0.65,133.73,133.7,109.0527533]
[1764985873383,0.65,133.73,133.7,113.75217617]
[1764985880102,8.12776872,133.73,133.7,109.0527533]
[1764985880398,8.12776872,133.73,133.7,113.75217617]
[1764985880701,0.65,133.73,133.7,113.75217617]
[1764985881324,0.65,133.73,133.7,113.03217617]
[1764985881601,8.12732394,133.74,133.71,0.72]
[1764985881798,0.65,133.73,133.7,109.0527533]
[1764985881999,0.65,133.73,133.7,113.75217617]
[1764985882307,0.65,133.73,133.7,113.03217617]
[1764985882491,0.65,133.73,133.71,0.72]
[1764985883211,8.12732394,133.74,133.71,0.72]
[1764985884315,1e-08,133.74,133.72,4.69942287]
[1764985884699,1e-08,133.74,133.72,12.17749807]
[1764985884906,1e-08,133.74,133.72,12.89749807]
[1764985885893,1e-08,133.74,133.72,75.09749807]
[1764985887111,0.65000001,133.74,133.72,62.2]
[1764985887810,5.34942288,133.74,133.72,62.2]
[1764985888188,0.65,133.73,133.72,62.2]
[1764985888614,0.65000001,133.74,133.72,62.2]
[1764985889003,23.10929254,133.74,133.72,62.2]
[1764985889209,30.58695439,133.74,133.72,62.2]
[1764985889418,29.93695439,133.74,133.72,62.2]
[1764985889709,0.65,133.73,133.72,62.2]
[1764985889923,0.65,133.73,133.7,101.57343047]
[1764985890306,5.34942287,133.73,133.7,38.65343047]
[1764985890810,0.65,133.72,133.7,38.65343047]
[1764985891120,0.65,133.72,133.7,30.43343047]
[1764985893022,12.82778824,133.72,133.7,30.43343047]
[1764985893427,0.65,133.71,133.7,30.43343047]
[1764985894224,27.81376073,133.71,133.7,30.43343047]
[1764985894930,30.59321004,133.71,133.7,30.43343047]
[1764985895342,35.29263291,133.71,133.7,30.43343047]
[1764985897623,12.82829505,133.71,133.7,30.43343047]
[1764985898608,7.47887218,133.71,133.7,30.43343047]
[1764985900721,8.12887218,133.71,133.7,30.43343047]
[1764985901230,30.59321004,133.71,133.7,30.43343047]
[1764985902335,35.29263291,133.71,133.7,30.43343047]
[1764985905930,12.17829505,133.71,133.7,30.43343047]
[1764985907845,7.47887218,133.71,133.7,30.43343047]
[1764985912314,12.17829505,133.71,133.7,30.43343047]
[1764985916444,12.82829505,133.71,133.7,30.43343047]
[1764985916820,35.29263291,133.71,133.7,30.43343047]
[1764985917230,43.51263291,133.71,133.7,30.43343047]
[1764985921147,42.86263291,133.71,133.7,30.43343047]
[1764985921950,43.51263291,133.71,133.7,30.43343047]
[1764985923732,42.86263291,133.71,133.7,30.43343047]
[1764985924145,43.51263291,133.71,133.7,30.43343047]
[1764985927754,38.16321004,133.71,133.7,30.43343047]
[1764985928044,42.86263291,133.71,133.7,30.43343047]
[1764985928553,20.39829505,133.71,133.7,30.43343047]
[1764985929441,7.47887218,133.71,133.7,31.15343047]
[1764985930762,7.47849489,133.72,133.7,31.15343047]
[1764985930966,7.47849489,133.72,133.71,0.72]
[1764985934044,10.48699812,133.72,133.71,0.72]
[1764985934232,11.13699812,133.72,133.7,30.43343047]
[1764985934434,30.59115072,133.72,133.7,30.43343047]
[1764985934640,33.59965395,133.72,133.7,31.15343047]
[1764985934836,3.00850323,133.71,133.7,31.15343047]
[1764985938647,32.94965395,133.72,133.7,31.15343047]
[1764985950571,29.94115072,133.72,133.7,31.15343047]
[1764985950770,7.47849489,133.72,133.7,31.15343047]
[1764985950952,22.46265583,133.71,133.7,31.15343047]
[1764985955350,29.94152801,133.71,133.7,31.15343047]
[1764985957776,29.94152801,133.71,133.7,30.43343047]
[1764985957973,32.95003124,133.71,133.7,30.43343047]
[1764985958179,32.95003124,133.71,133.7,31.15343047]
[1764985959477,7.47887218,133.71,133.7,31.15343047]
[1764985963975,19.35737541,133.71,133.7,30.43343047]
[1764985964275,41.82339555,133.71,133.7,30.43343047]
[1764985966780,50.63334047,133.71,133.7,30.43343047]
[1764985972563,16.308864,133.68,133.65,0.67]
[1764985972868,10.49017313,133.66,133.65,0.67]
[1764985973791,32.96292491,133.66,133.65,0.67]
[1764985978995,52.31709968,133.66,133.62,0.67]
[1764985979193,3.00850323,133.64,133.62,0.67]
[1764985980096,22.47611912,133.63,133.62,0.67]
[1764985981392,29.95946866,133.63,133.62,0.67]
[1764985985091,32.96797189,133.63,133.62,0.67]
[1764985989380,32.96797189,133.63,133.6,62.88]
[1764985989696,10.49185277,133.63,133.6,62.2]
[1764985989895,3.00850323,133.61,133.59,0.68]
[1764985990602,25.48799069,133.6,133.58,0.88]
[1764985990903,25.48799069,133.6,133.58,0.2]
[1764985990904,3.00850323,133.59,133.58,0.2]
[1764985991483,32.97695028,133.59,133.58,0.2]
[1764985991791,32.97695028,133.59,133.58,0.88]
[1764985992376,34.67909777,133.59,133.58,0.88]
[1764985993077,34.67909777,133.59,133.58,0.2]
[1764985993609,68.66790669,133.59,133.58,0.2]
[1764985994501,54.49731105,133.59,133.58,0.2]
[1764985994684,59.20796177,133.59,133.58,0.88]
[1764986000398,68.66790669,133.59,133.58,0.2]
[1764986001315,68.01790669,133.59,133.58,0.2]
[1764986001487,68.66790669,133.59,133.58,0.2]
[1764986010020,68.01790669,133.59,133.58,0.2]
[1764986011821,45.53504987,133.59,133.58,0.2]
[1764986012721,48.53343823,133.59,133.58,0.2]
[1764986017514,36.72510495,133.59,133.58,0.2]
[1764986017714,36.72510495,133.59,133.58,0.88]
[1764986018404,15.70559023,133.59,133.58,0.88]
[1764986018610,2.99816362,133.6,133.58,0.88]
[1764986018611,7.48521059,133.6,133.58,0.88]
[1764986018924,7.48521059,133.6,133.59,0.69]
[1764986021724,12.19586131,133.6,133.58,0.89]
[1764986022332,12.19586131,133.6,133.59,0.69]
[1764986034936,21.06586131,133.6,133.58,0.2]
[1764986035122,4.71065072,133.59,133.58,0.2]
[1764986037240,12.19624095,133.59,133.58,0.2]
[1764986041424,12.19624095,133.59,133.58,0.87]
[1764986042111,12.19624095,133.59,133.58,0.2]
[1764986045921,12.19624095,133.59,133.58,0.87]
[1764986047647,7.48559023,133.59,133.58,0.87]
[1764986048353,23.79406565,133.6,133.58,0.87]
[1764986048651,28.50471637,133.6,133.59,0.67]
[1764986048952,23.79406565,133.6,133.59,0.67]
[1764986049150,28.50471637,133.6,133.59,0.67]
[1764986054452,26.80825327,133.6,133.59,0.67]
[1764986056133,21.72302269,133.63,133.59,0.67]
[1764986056456,38.03188669,133.63,133.59,0.67]
[1764986056759,38.03188669,133.63,133.59,3.68418762]
[1764986056946,7.48380454,133.63,133.6,0.72]
[1764986057266,7.48380454,133.63,133.6,3.73418762]
[1764986057638,7.48380454,133.63,133.61,0.72]
[1764986059055,10.49719051,133.64,133.61,0.72]
[1764986061250,7.48300289,133.64,133.61,0.72]
[1764986061436,10.49647091,133.65,133.61,11.21855769]
[1764986061752,10.49647091,133.65,133.62,0.72]
[1764986064438,45.52340301,133.66,133.62,8.20386841]
[1764986064836,45.52340301,133.66,133.63,0.72]
[1764986066555,42.50921539,133.66,133.63,0.72]
[1764986067066,32.0106577,133.66,133.63,0.72]
[1764986068150,35.02484532,133.66,133.63,0.72]
[1764986069962,32.96786326,133.68,133.63,19.43719935]
[1764986070160,7.48092386,133.68,133.64,3.01418762]
[1764986070358,7.48092386,133.68,133.65,0.72]
[1764986070766,8.22,133.69,133.65,8.20200828]
[1764986070949,11.23418762,133.69,133.65,8.20200828]
[1764986071148,11.23418762,133.69,133.66,0.72]
[1764986071477,3.01418762,133.68,133.66,0.72]
[1764986072151,18.71443254,133.69,133.66,0.72]
[1764986073766,26.19460101,133.69,133.66,0.72]
[1764986073957,7.48016847,133.69,133.66,0.72]
[1764986077147,3.66418762,133.68,133.63,18.71711658]
[1764986077385,3.66418762,133.68,133.64,0.72]
[1764986077386,3.01418762,133.68,133.64,0.72]
[1764986077884,18.71711658,133.67,133.64,0.72]
[1764986078178,3.01418762,133.68,133.64,0.72]
[1764986078383,26.19822677,133.67,133.64,3.73418762]
[1764986078754,26.19822677,133.67,133.65,0.72]
[1764986081277,7.48111019,133.67,133.65,0.72]
[1764986081495,23.18403915,133.67,133.65,0.72]
[1764986083961,19.3645212,133.69,133.65,0.72]
[1764986084271,18.71711658,133.68,133.66,10.49585752]
[1764986084486,28.19305162,133.71,133.66,10.49585752]
[1764986084671,46.89993772,133.71,133.67,0.72]
[1764986085169,54.37883194,133.71,133.67,8.20108309]
[1764986085379,50.71464432,133.71,133.67,11.21527071]
[1764986085680,50.71464432,133.71,133.68,0.72]
[1764986086563,51.36464432,133.71,133.68,0.72]
[1764986087268,50.71464432,133.71,133.68,0.72]
[1764986088396,51.36464432,133.71,133.68,0.72]
[1764986089367,19.3568861,133.71,133.68,8.20049706]
[1764986089567,11.14269578,133.72,133.68,0.72]
[1764986089774,22.37107372,133.7,133.66,0.72]
[1764986090089,3.01418762,133.69,133.66,0.72]
[1764986090483,25.38526134,133.69,133.66,0.72]
[1764986091486,33.51577245,133.69,133.66,0.72]
[1764986094402,11.88418762,133.68,133.64,0.68]
[1764986094796,3.66418762,133.67,133.64,0.68]
[1764986095118,3.01418762,133.66,133.64,0.68]
[1764986095576,15.70370194,133.66,133.64,0.68]
[1764986096476,26.85007545,133.66,133.63,0.68]
[1764986096677,26.20007545,133.66,133.63,0.68]
[1764986096980,10.49637351,133.66,133.63,0.68]
[1764986097182,10.49855114,133.65,133.63,0.68]
[1764986099613,17.98079613,133.65,133.63,0.68]
[1764986100190,17.98079613,133.65,133.6,18.719126]
[1764986100191,11.14643261,133.65,133.6,18.719126]
[1764986100398,8.22,133.64,133.62,0.68]
[1764986100716,15.70279507,133.64,133.62,0.68]
[1764986101208,7.48237812,133.65,133.62,0.68]
[1764986101776,15.70182719,133.66,133.62,8.16390847]
[1764986101989,26.20046309,133.66,133.62,8.16390847]
[1764986102302,26.20046309,133.66,133.63,0.68]
[1764986103611,17.98046309,133.66,133.63,0.68]
[1764986106207,20.99465071,133.66,133.63,0.68]
[1764986108213,10.49601481,133.66,133.63,0.68]
[1764986108412,22.47275178,133.65,133.63,0.68]
[1764986110715,29.95508746,133.65,133.63,0.68]
[1764986112514,32.96927508,133.65,133.63,0.68]
[1764986113110,29.95508746,133.65,133.63,0.68]
[1764986115497,29.95508746,133.65,133.63,3.69418762]
[1764986115694,7.48233568,133.65,133.64,0.68]
[1764986116204,15.70174292,133.66,133.64,0.68]
[1764986116398,38.1744947,133.66,133.64,0.68]
[1764986116609,15.70174292,133.66,133.64,0.68]
[1764986118215,7.48174292,133.66,133.64,0.68]
[1764986126916,29.95281141,133.66,133.64,0.68]
[1764986129831,29.95281141,133.66,133.62,7.48355897]
[1764986130036,4.70460047,133.64,133.63,0.68]
[1764986130335,27.82903579,133.65,133.63,0.68]
[1764986130507,34.40591769,133.66,133.61,62.2]
[1764986130708,4.70460047,133.65,133.63,0.68]
[1764986130907,5.35460047,133.65,133.63,0.68]
[1764986131342,22.47443532,133.64,133.63,0.68]
[1764986132022,29.9572249,133.64,133.63,0.68]
[1764986133536,7.48278958,133.64,133.63,0.68]
[1764986136941,12.18698446,133.65,133.63,0.68]
[1764986137234,7.48238399,133.65,133.63,0.68]
[1764986150349,12.18698446,133.65,133.61,7.48439102]
[1764986150653,12.83698446,133.65,133.62,0.69]
[1764986151038,12.18698446,133.65,133.62,0.69]
[1764986151439,34.66081721,133.66,133.62,8.17372307]
[1764986151639,12.83638189,133.66,133.63,0.69]
[1764986152762,4.70460047,133.66,133.63,8.17334044]
[1764986152937,20.40592926,133.67,133.64,0.69]
[1764986153751,27.8892697,133.67,133.64,0.69]
[1764986155464,7.48074182,133.68,133.64,8.17271992]
[1764986155763,20.40534229,133.68,133.64,8.17271992]
[1764986155947,20.40534229,133.68,133.65,0.69]
[1764986156465,21.05534229,133.68,133.65,0.69]
[1764986158364,4.70460047,133.67,133.65,0.69]
[1764986162365,16.35074182,133.68,133.65,0.69]
[1764986162683,4.70460047,133.67,133.65,0.69]
[1764986165372,8.22,133.68,133.65,8.1721287]
[1764986165587,8.22,133.68,133.66,0.69]
[1764986165950,12.92460047,133.68,133.66,0.69]
[1764986169364,8.22,133.68,133.66,0.69]
[1764986169678,28.49363634,133.69,133.66,0.69]
[1764986171386,4.70460047,133.68,133.66,0.69]
[1764986172282,5.35460047,133.67,133.63,62.7]
[1764986172471,4.70460047,133.66,133.63,0.68]
[1764986172783,5.35460047,133.66,133.63,0.68]
[1764986173761,4.70460047,133.66,133.63,0.68]
[1764986173961,12.18628218,133.66,133.63,0.68]
[1764986174369,12.83628218,133.66,133.63,0.68]
[1764986176386,11.14321959,133.66,133.63,0.68]
[1764986178789,3.01153788,133.65,133.63,0.68]
[1764986178975,3.66153788,133.65,133.62,0.68]
[1764986179495,3.01153788,133.65,133.62,0.68]
[1764986180289,10.49413512,133.65,133.62,0.68]
[1764986180478,11.14413512,133.65,133.62,0.68]
[1764986185170,10.49413512,133.65,133.62,0.68]
[1764986186892,7.48259724,133.65,133.62,0.68]
[1764986190299,10.49413512,133.65,133.62,0.68]
[1764986190488,11.14413512,133.65,133.62,0.68]
[1764986190999,19.36413512,133.65,133.62,0.68]
[1764986191796,18.71413512,133.65,133.62,0.68]
[1764986193383,29.95728562,133.64,133.62,0.68]
[1764986194512,29.95728562,133.64,133.6,8.22]
[1764986194810,8.1328503,133.64,133.61,0.68]
[1764986194982,22.47780316,133.63,133.61,0.68]
[1764986196804,3.66153788,133.62,133.58,0.2]
[1764986197003,3.66153788,133.62,133.59,0.68]
[1764986197574,11.23153788,133.61,133.59,0.68]
[1764986198985,21.72770254,133.61,133.59,0.68]
[1764986199307,10.49616466,133.61,133.59,0.68]
[1764986199716,19.36790499,133.6,133.58,0.2]
[1764986199884,18.71790499,133.6,133.58,0.89]
[1764986200082,3.01153788,133.6,133.58,0.89]
[1764986200503,8.22,133.59,133.58,0.89]
[1764986217536,15.70559023,133.59,133.58,0.89]
[1764986221220,7.48505598,133.6,133.58,0.89]
[1764986221415,23.19267338,133.6,133.59,0.69]
[1764986223429,23.19267338,133.6,133.58,0.89]
[1764986224832,23.19267338,133.6,133.59,0.69]
[1764986226656,23.19267338,133.6,133.58,0.2]
[1764986226821,23.19267338,133.6,133.58,0.89]
[1764986227212,23.19267338,133.6,133.59,0.69]
[1764986232338,23.19267338,133.6,133.58,0.86]
[1764986235617,7.48505598,133.6,133.58,0.86]
[1764986235936,11.23153788,133.59,133.58,0.86]
[1764986236705,7.48505598,133.6,133.58,0.86]
[1764986236938,18.71659386,133.6,133.58,0.86]
[1764986239746,8.13505598,133.6,133.58,0.2]
[1764986240037,8.22,133.59,133.58,0.86]
[1764986246344,21.06474249,133.59,133.58,0.2]
[1764986252954,29.87468741,133.59,133.58,0.2]
[1764986255265,21.06474249,133.59,133.58,0.2]
[1764986255433,20.41474249,133.59,133.58,0.2]
[1764986255755,21.06474249,133.59,133.58,0.2]
[1764986256436,20.41474249,133.59,133.58,0.2]
[1764986256632,21.06474249,133.59,133.58,0.2]
[1764986268772,29.87468741,133.59,133.58,0.2]
[1764986273169,29.82796118,133.57,133.56,0.2]
[1764986273369,38.04796118,133.57,133.56,0.2]
[1764986273765,24.528864,133.57,133.56,0.86]
[1764986273955,33.94716852,133.57,133.56,0.86]
[1764986276453,41.4338796,133.57,133.56,0.86]
[1764986276661,41.4338796,133.57,133.56,0.2]
[1764986281271,41.4338796,133.57,133.56,0.86]
[1764986287686,12.19586334,133.57,133.56,0.86]
[1764986287869,7.48671108,133.57,133.56,0.86]
[1764986288186,22.48454187,133.6,133.56,5.56915226]
[1764986288393,7.48502994,133.6,133.57,0.66]
[1764986292194,16.308864,133.58,133.56,0.2]
[1764986292399,12.92915226,133.57,133.56,0.2]
[1764986292574,15.9277654,133.57,133.56,0.2]
[1764986293591,32.8744214,133.57,133.56,0.2]
[1764986294399,32.2244214,133.57,133.56,0.2]
[1764986298594,30.53185844,133.57,133.56,0.2]
[1764986303398,134.18185844,133.57,133.56,0.2]
[1764986304405,133.53185844,133.57,133.56,0.2]
[1764986304889,134.18185844,133.57,133.56,0.2]
[1764986306505,133.53185844,133.57,133.56,0.2]
[1764986307709,134.18185844,133.57,133.56,0.2]
[1764986319518,133.53185844,133.57,133.56,0.2]
[1764986319895,134.18185844,133.57,133.56,0.2]
[1764986320218,133.53185844,133.57,133.56,0.2]
[1764986320920,134.18185844,133.57,133.56,0.2]
[1764986327222,133.53185844,133.57,133.56,0.2]
[1764986329602,133.53185844,133.57,133.56,0.9]
[1764986330120,133.53185844,133.57,133.56,0.2]
[1764986330318,133.53185844,133.57,133.56,0.9]
[1764986330528,130.5332453,133.57,133.56,0.9]
[1764986330704,121.72330038,133.57,133.56,0.9]
[1764986336734,18.72330038,133.57,133.56,0.9]
[1764986338331,28.1832453,133.57,133.56,0.2]
[1764986338729,49.92432302,133.57,133.56,0.2]
[1764986340723,49.27432302,133.57,133.56,0.2]
[1764986341229,49.92432302,133.57,133.56,0.2]
[1764986345534,49.27432302,133.57,133.56,0.2]
[1764986349138,152.27432302,133.57,133.56,0.2]
[1764986360358,153.97171664,133.57,133.56,0.2]
[1764986369565,153.97171664,133.57,133.56,0.89]
[1764986369860,12.200694,133.57,133.56,0.89]
[1764986370063,7.48671108,133.57,133.56,0.89]
[1764986375053,12.20033333,133.58,133.56,0.89]
[1764986375252,12.20033333,133.58,133.57,0.69]
[1764986375768,19.68871121,133.58,133.57,0.69]
[1764986380067,7.48837788,133.58,133.57,0.69]
[1764986380253,12.93398292,133.59,133.57,0.69]
[1764986380456,20.4223608,133.59,133.57,0.69]
[1764986383466,12.93398292,133.59,133.57,0.69]
[1764986383673,20.41995277,133.59,133.57,0.69]
[1764986384252,7.68716118,133.58,133.57,0.69]
[1764986386763,19.88729472,133.58,133.57,0.69]
[1764986394372,19.88729472,133.58,133.56,0.2]
[1764986394583,4.71398292,133.57,133.56,0.92]
[1764986394961,12.2023644,133.57,133.56,0.92]
[1764986395880,7.48838148,133.57,133.56,0.92]
[1764986396880,12.2023644,133.57,133.56,0.92]
[1764986398683,7.48838148,133.57,133.56,0.92]
[1764986400592,20.41968971,133.59,133.56,0.92]
[1764986400784,7.48838148,133.58,133.57,0.72]
[1764986401495,8.22,133.59,133.57,0.72]
[1764986401986,15.70768711,133.59,133.57,0.72]
[1764986403682,7.48768711,133.59,133.57,0.72]
[1764986403883,12.20167003,133.59,133.57,0.72]
[1764986404989,7.48768711,133.59,133.57,0.72]
[1764986405782,19.68751516,133.59,133.57,0.72]
[1764986405986,13.58398292,133.58,133.56,0.2]
[1764986406284,4.71398292,133.57,133.56,0.2]
[1764986406483,5.36398292,133.57,133.56,0.2]
[1764986406986,12.85338456,133.57,133.56,0.2]
[1764986407367,21.66332948,133.57,133.56,0.2]
[1764986407584,29.15004056,133.57,133.56,0.2]
[1764986409696,33.86402348,133.57,133.56,0.2]
[1764986410193,33.86402348,133.57,133.5,0.87]
[1764986410194,16.308864,133.53,133.5,0.87]
[1764986410400,4.71398292,133.51,133.5,0.2]
[1764986410587,4.71398292,133.51,133.5,0.87]
[1764986410782,7.71349549,133.51,133.5,0.87]
[1764986410988,7.71349549,133.51,133.5,0.2]
[1764986411187,15.20357113,133.51,133.5,0.2]
[1764986411988,15.20357113,133.51,133.5,0.87]
[1764986412401,15.20357113,133.51,133.5,0.2]
[1764986414496,15.20357113,133.51,133.5,0.87]
[1764986414702,15.20357113,133.51,133.5,0.2]
[1764986419706,15.20357113,133.51,133.5,0.87]
[1764986420406,13.50793368,133.51,133.5,0.87]
[1764986423418,13.50793368,133.51,133.5,0.2]
[1764986430829,13.50793368,133.51,133.5,0.87]
[1764986431126,13.50793368,133.51,133.5,0.2]
[1764986431905,13.50793368,133.51,133.5,0.87]
[1764986435095,10.50842111,133.51,133.5,0.87]
[1764986436114,3.01834547,133.55,133.5,3.88834547]
[1764986436414,2.99883795,133.55,133.51,0.67]
[1764986437121,7.48819964,133.55,133.51,8.15995327]
[1764986437298,7.48819964,133.55,133.52,0.67]
[1764986437499,10.50654511,133.55,133.52,0.67]
[1764986438611,3.01834547,133.55,133.52,0.67]
[1764986439304,3.01834547,133.55,133.52,8.1594379]
[1764986439723,3.01834547,133.55,133.53,0.7]
[1764986439932,7.48742421,133.56,133.53,0.7]
[1764986440222,10.50576968,133.56,133.53,0.7]
[1764986441020,31.28573352,133.57,133.53,0.7]
[1764986441227,11.23834547,133.58,133.53,8.18858393]
[1764986441826,11.23834547,133.58,133.54,0.7]
[1764986442417,18.72470487,133.58,133.54,0.7]
[1764986443426,15.7063594,133.58,133.54,0.7]
[1764986443829,15.7063594,133.58,133.54,8.1883902]
[1764986444028,15.7063594,133.58,133.55,0.7]
[1764986447221,18.72470487,133.58,133.55,0.7]
[1764986450036,18.72476175,133.58,133.55,0.7]
[1764986451850,8.22,133.58,133.55,8.18762465]
[1764986452436,8.22,133.58,133.56,0.69]
[1764986455028,3.01834547,133.58,133.56,0.69]
[1764986462535,10.50497885,133.58,133.56,0.69]
[1764986462934,10.50505655,133.57,133.56,0.69]
[1764986465941,19.37505655,133.57,133.51,7.48970957]
[1764986466154,3.01834547,133.53,133.52,0.69]
[1764986466448,3.01834547,133.53,133.51,0.69]
[1764986470362,3.01834547,133.52,133.5,0.89]
[1764986470535,3.01834547,133.52,133.51,0.69]
[1764986470936,18.19791435,133.53,133.51,0.69]
[1764986472356,18.84791435,133.53,133.5,0.89]
[1764986472537,3.01834547,133.52,133.5,0.89]
[1764986473434,3.01834547,133.52,133.51,0.69]
[1764986475246,10.50786014,133.52,133.51,0.69]
[1764986481365,15.17956936,133.53,133.51,0.69]
[1764986481667,18.72739739,133.53,133.51,0.69]
[1764986482357,20.42375447,133.53,133.51,0.69]
[1764986483866,4.71470255,133.52,133.51,0.69]
[1764986484071,4.71470255,133.52,133.5,0.89]
[1764986484262,4.71470255,133.51,133.5,0.89]
[1764986484568,4.71470255,133.51,133.5,0.2]
[1764986485481,4.71470255,133.51,133.5,0.89]
[1764986486580,12.20477819,133.51,133.5,0.89]
[1764986486956,15.20429076,133.51,133.5,0.89]
[1764986487156,15.85429076,133.51,133.5,0.2]
[1764986487482,24.07429076,133.51,133.5,0.2]
[1764986493571,37.59893823,133.51,133.49,0.1]
[1764986493782,8.80994492,133.49,133.48,0.1]
[1764986494075,18.23935002,133.49,133.48,0.1]